fUSD/lending_fUSD_20260612
["ID","MTS","AMOUNT","RATE_DAILY","PERIOD"]
[424883864,1781232642000,-151.0,0.0002135,2]
[424883863,1781232642000,-1280.88388877,0.0002135,2]
[424883874,1781232642000,-1536.04360648,0.0002135,2]
[424883869,1781232642000,-1428.38747117,0.0002135,2]
[424883871,1781232642000,-151.0,0.0002135,2]
[424883873,1781232642000,-151.0,0.0002135,2]
[424883867,1781232642000,-1377.42282658,0.0002135,2]
[424883868,1781232642000,-151.0,0.0002135,2]
[424883865,1781232642000,-1328.27659266,0.0002135,2]
[424883866,1781232642000,-151.0,0.0002135,2]
[424883872,1781232642000,-1481.2378076,0.0002135,2]
[424883870,1781232642000,-2080.17592889,0.0002135,2]
[424883815,1781232642000,-505.0,0.0002,2]
[424883860,1781232642000,-1191.11104074,0.0002135,2]
[424883847,1781232642000,-262.928167,0.00021195,2]
[424883780,1781232642000,-10668.67,0.00019339,2]
[424883814,1781232642000,-244.0,0.0002,2]
[424883845,1781232642000,-262.928167,0.00021195,2]
[424883817,1781232642000,-200.0,0.0002,2]
[424883826,1781232642000,-163.75,0.00020771,2]
[424883816,1781232642000,-589.0,0.0002,2]
[424883820,1781232642000,-189.0,0.0002,2]
[424883818,1781232642000,-174.0,0.0002,2]
[424883823,1781232642000,-666.4,0.00020381,2]
[424883819,1781232642000,-173.0,0.0002,2]
[424883822,1781232642000,-1934.38338736,0.00020254,2]
[424883824,1781232642000,-203.191362,0.00020564,7]
[424883828,1781232642000,-2005.9555727,0.00020802,2]
[424883827,1781232642000,-404.36,0.000208,2]
[424883830,1781232642000,-734.17842592,0.00020928,2]
[424883838,1781232642000,-174.0,0.00021,2]
[424883821,1781232642000,-227.0,0.0002,2]
[424883832,1781232642000,-206.0,0.00021,2]
[424883848,1781232642000,-262.928167,0.00021195,2]
[424883829,1781232642000,-505.0,0.00020833,2]
[424883842,1781232642000,-167.0,0.00021087,5]
[424883846,1781232642000,-262.928167,0.00021195,2]
[424883849,1781232642000,-500.0,0.00021195,2]
[424883840,1781232642000,-189.0,0.00021,2]
[424883850,1781232642000,-500.0,0.00021195,2]
[424883836,1781232642000,-589.0,0.00021,2]
[424883831,1781232642000,-464.737018,0.00021,2]
[424883837,1781232642000,-200.0,0.00021,2]
[424883834,1781232642000,-225.0,0.00021,2]
[424883833,1781232642000,-167.0,0.00021,2]
[424883835,1781232642000,-244.0,0.00021,2]
[424883912,1781232643000,-1125.0,0.00022602,2]
[424883914,1781232643000,-500.0,0.00022873,2]
[424883915,1781232643000,-500.0,0.00022873,2]
[424883913,1781232643000,-404.36,0.000227,7]
[424883911,1781232643000,-519.17395062,0.000226,2]
[424883910,1781232643000,-927.98072367,0.000226,2]
[424883908,1781232643000,-505.0,0.000225,4]
[424883906,1781232643000,-825.12,0.00022466,2]
[424883909,1781232643000,-150.0,0.0002254,2]
[424883904,1781232643000,-519.17395062,0.000223,2]
[424883922,1781232643000,-244.0,0.00023,2]
[424883907,1781232643000,-759.18,0.00022466,2]
[424883924,1781232643000,-200.0,0.00023,2]
[424883917,1781232643000,-254.437045,0.00022949,14]
[424883920,1781232643000,-167.0,0.00023,2]
[424883916,1781232643000,-220.325722,0.00022932,14]
[424883921,1781232643000,-225.0,0.00023,2]
[424883918,1781232643000,-464.737018,0.00023,2]
[424883919,1781232643000,-206.0,0.00023,2]
[424883925,1781232643000,-174.0,0.00023,2]
[424883927,1781232643000,-189.0,0.00023,2]
[424883935,1781232643000,-500.0,0.00023089,2]
[424883936,1781232643000,-500.0,0.00023089,2]
[424883937,1781232643000,-150.0,0.00023288,2]
[424883926,1781232643000,-173.0,0.00023,2]
[424883928,1781232643000,-150.0,0.00023,2]
[424883905,1781232643000,-666.4,0.00022353,2]
[424883923,1781232643000,-589.0,0.00023,2]
[424883902,1781232643000,-519.17395062,0.000221,2]
[424883877,1781232643000,-238.11177,0.00021668,2]
[424883901,1781232643000,-927.98072367,0.000221,2]
[424883875,1781232643000,-638.06403236,0.00021526,2]
[424883876,1781232643000,-505.0,0.00021667,3]
[424883879,1781232643000,-215.99183634,0.00021679,2]
[424883881,1781232643000,-256.57820982,0.000217,2]
[424883883,1781232643000,-927.98072367,0.000219,2]
[424883878,1781232643000,-160.0,0.00021678,2]
[424883885,1781232643000,-172.462865,0.000219,2]
[424883886,1781232643000,-5000.0,0.00021918,2]
[424883882,1781232643000,-519.17395062,0.000217,2]
[424883888,1781232643000,-510.0,0.00021918,10]
[424883880,1781232643000,-927.98072367,0.000217,2]
[424883884,1781232643000,-519.17395062,0.000219,2]
[424883903,1781232643000,-927.98072367,0.000223,2]
[424883887,1781232643000,-501.0,0.00021918,8]
[424883890,1781232643000,-464.737018,0.00022,2]
[424883889,1781232643000,-150.0,0.00021918,2]
[424883892,1781232643000,-167.0,0.00022,2]
[424883900,1781232643000,-227.0,0.00022,2]
[424883894,1781232643000,-244.0,0.00022,2]
[424883891,1781232643000,-206.0,0.00022,2]
[424883893,1781232643000,-225.0,0.00022,2]
[424883897,1781232643000,-174.0,0.00022,2]
[424883895,1781232643000,-589.0,0.00022,2]
[424883899,1781232643000,-189.0,0.00022,2]
[424883896,1781232643000,-200.0,0.00022,2]
[424883898,1781232643000,-173.0,0.00022,2]
[424883929,1781232643000,-227.0,0.00023,2]
[424883930,1781232643000,-1778.0838661,0.00023078,7]
[424883932,1781232643000,-508.19111131,0.00023089,2]
[424883931,1781232643000,-4692.39145468,0.00023078,7]
[424883964,1781232643000,-520.0,0.00024658,10]
[424883967,1781232643000,-151.29953402,0.00024658,2]
[424883966,1781232643000,-1000.0,0.00024658,2]
[424883968,1781232643000,-157.54,0.00024658,2]
[424883971,1781232643000,-152.0,0.00024712,7]
[424883974,1781232643000,-150.0,0.0002485,2]
[424883973,1781232643000,-152.0,0.00024742,7]
[424883979,1781232643000,-249.24152589,0.00025,2]
[424883972,1781232643000,-152.0,0.00024712,7]
[424883933,1781232643000,-500.0,0.00023089,2]
[424883976,1781232643000,-175.0,0.00025,2]
[424883983,1781232643000,-183.0,0.00025,2]
[424883982,1781232643000,-190.14845444,0.00025,2]
[424883965,1781232643000,-174.03,0.00024658,2]
[424883981,1781232643000,-215.61590978,0.00025,2]
[424883978,1781232643000,-505.0,0.00025,6]
[424883975,1781232643000,-206.36709755,0.00025,2]
[424883985,1781232643000,-243.78899313,0.00025,2]
[424883986,1781232643000,-157.54,0.00025052,7]
[424883987,1781232643000,-158.18,0.00025052,7]
[424883984,1781232643000,-190.0,0.00025,2]
[424883988,1781232643000,-157.54,0.00025447,30]
[424883994,1781232643000,-830.99,0.00025786,2]
[424883993,1781232643000,-5453.41,0.00025786,2]
[424883990,1781232643000,-229.044631,0.00025607,14]
[424883989,1781232643000,-158.18,0.00025447,30]
[424883992,1781232643000,-3027.90867326,0.00025723,2]
[424883991,1781232643000,-198.426475,0.00025607,14]
[424883980,1781232643000,-606.30220777,0.00025,2]
[424883958,1781232643000,-780.5768505,0.00024443,2]
[424883977,1781232643000,-226.08082441,0.00025,2]
[424883963,1781232643000,-520.0,0.00024658,10]
[424883934,1781232643000,-500.0,0.00023089,2]
[424883962,1781232643000,-510.0,0.00024658,10]
[424883942,1781232643000,-464.737018,0.00024,2]
[424883944,1781232643000,-167.0,0.00024,2]
[424883941,1781232643000,-500.0,0.00023781,2]
[424883943,1781232643000,-206.0,0.00024,2]
[424883940,1781232643000,-150.0,0.00023667,2]
[424883939,1781232643000,-500.0,0.0002354,2]
[424883945,1781232643000,-225.0,0.00024,2]
[424883946,1781232643000,-244.0,0.00024,2]
[424883951,1781232643000,-189.0,0.00024,2]
[424883948,1781232643000,-200.0,0.00024,2]
[424883949,1781232643000,-174.0,0.00024,2]
[424883938,1781232643000,-505.0,0.00023333,5]
[424883955,1781232643000,-1060.54665507,0.000243,2]
[424883952,1781232643000,-227.0,0.00024,2]
[424883960,1781232643000,-2655.72553156,0.00024493,2]
[424883969,1781232643000,-158.18,0.00024658,2]
[424883970,1781232643000,-404.36,0.000247,7]
[424883959,1781232643000,-500.0,0.00024483,2]
[424883953,1781232643000,-505.0,0.00024167,6]
[424883961,1781232643000,-734.17842592,0.00024542,2]
[424883957,1781232643000,-311.0,0.00024329,2]
[424883956,1781232643000,-666.4,0.00024324,2]
[424883950,1781232643000,-173.0,0.00024,2]
[424883947,1781232643000,-589.0,0.00024,2]
[424883954,1781232643000,-1548.33,0.00024174,2]
[424884023,1781232644000,-151.0,0.00026384,2]
[424884034,1781232644000,-3027.90867326,0.00026601,2]
[424884028,1781232644000,-3027.90867326,0.00026462,2]
[424884029,1781232644000,-3027.90867326,0.00026497,2]
[424884027,1781232644000,-3027.90867326,0.00026456,2]
[424884024,1781232644000,-151.0,0.00026384,2]
[424884026,1781232644000,-3027.90867326,0.00026453,2]
[424884032,1781232644000,-3027.90867326,0.00026565,2]
[424884025,1781232644000,-151.0,0.00026384,2]
[424884033,1781232644000,-3027.90867326,0.00026567,2]
[424884030,1781232644000,-3027.90867326,0.00026542,2]
[424884038,1781232644000,-3027.90867326,0.00026675,2]
[424884036,1781232644000,-158.18,0.00026631,30]
[424884037,1781232644000,-505.0,0.00026667,8]
[424884039,1781232644000,-3027.90867326,0.00026699,2]
[424884015,1781232644000,-3027.90867326,0.00026146,2]
[424884047,1781232644000,-3027.90867326,0.00027041,2]
[424884035,1781232644000,-157.54,0.00026631,30]
[424884046,1781232644000,-3027.90867326,0.00027026,2]
[424884043,1781232644000,-158.15,0.00027026,2]
[424884041,1781232644000,-3027.90867326,0.00026887,2]
[424884045,1781232644000,-158.18,0.00027026,2]
[424884042,1781232644000,-3027.90867326,0.00026982,2]
[424884031,1781232644000,-3027.90867326,0.00026544,2]
[424884021,1781232644000,-158.18,0.00026236,7]
[424884007,1781232644000,-3027.90867326,0.00025936,2]
[424884017,1781232644000,-3027.90867326,0.00026171,2]
[424884040,1781232644000,-404.36,0.000267,7]
[424883996,1781232644000,-3027.90867326,0.00025799,2]
[424883995,1781232644000,-1548.33,0.00025786,2]
[424883997,1781232644000,-411.0,0.00025809,2]
[424884000,1781232644000,-505.0,0.00025833,7]
[424883999,1781232644000,-3027.90867326,0.00025828,2]
[424884001,1781232644000,-157.54,0.00025842,2]
[424884009,1781232644000,-3027.90867326,0.00026046,2]
[424883998,1781232644000,-3027.90867326,0.00025823,2]
[424884006,1781232644000,-3027.90867326,0.00025898,2]
[424884002,1781232644000,-158.18,0.00025842,2]
[424884020,1781232644000,-157.54,0.00026236,7]
[424884005,1781232644000,-3027.90867326,0.00025893,2]
[424884008,1781232644000,-3027.90867326,0.00026043,2]
[424884010,1781232644000,-8277.93473298,0.00026078,14]
[424884003,1781232644000,-1536.33607876,0.00025844,2]
[424884022,1781232644000,-666.4,0.00026296,2]
[424884012,1781232644000,-150.0,0.00026093,2]
[424884011,1781232644000,-3027.90867326,0.00026084,2]
[424884018,1781232644000,-3027.90867326,0.00026225,2]
[424884014,1781232644000,-3027.90867326,0.00026124,2]
[424884013,1781232644000,-3027.90867326,0.00026112,2]
[424884016,1781232644000,-3027.90867326,0.00026153,2]
[424884019,1781232644000,-3027.90867326,0.00026225,2]
[424884004,1781232644000,-157.0,0.0002587,2]
[424884044,1781232644000,-157.54,0.00027026,2]
[424884099,1781232644000,-158.18,0.00027798,2]
[424884059,1781232644000,-6076.0,0.00027294,2]
[424884078,1781232644000,-153.72,0.000274,7]
[424884079,1781232644000,-500.0,0.000275,7]
[424884075,1781232644000,-338.209091,0.00027397,2]
[424884077,1781232644000,-150.0,0.00027398,2]
[424884083,1781232644000,-157.54,0.0002755,2]
[424884080,1781232644000,-505.0,0.000275,9]
[424884081,1781232644000,-1000.0,0.000275,2]
[424884084,1781232644000,-199.02,0.0002755,30]
[424884098,1781232644000,-157.54,0.00027798,2]
[424884097,1781232644000,-155.09,0.00027757,7]
[424884087,1781232644000,-155.09,0.0002755,30]
[424884086,1781232644000,-158.18,0.0002755,2]
[424884088,1781232644000,-199.1,0.0002755,30]
[424884089,1781232644000,-209.0,0.00027594,2]
[424884093,1781232644000,-199.1,0.00027711,7]
[424884092,1781232644000,-199.02,0.00027711,7]
[424884090,1781232644000,-157.54,0.00027632,7]
[424884096,1781232644000,-155.01,0.00027757,7]
[424884094,1781232644000,-157.54,0.00027715,30]
[424884095,1781232644000,-158.18,0.00027715,30]
[424884048,1781232644000,-3027.90867326,0.00027187,2]
[424884101,1781232644000,-199.02,0.00027872,2]
[424884100,1781232644000,-411.69369659,0.00027813,2]
[424884085,1781232644000,-155.01,0.0002755,30]
[424884082,1781232644000,-165.82,0.0002755,30]
[424884091,1781232644000,-158.18,0.00027632,7]
[424884074,1781232644000,-338.209091,0.00027397,2]
[424884051,1781232644000,-3027.90867326,0.00027275,2]
[424884054,1781232644000,-1362.559,0.00027294,2]
[424884055,1781232644000,-383.0,0.00027294,2]
[424884050,1781232644000,-2191.12797765,0.00027267,7]
[424884052,1781232644000,-500.0,0.00027293,2]
[424884049,1781232644000,-1063.13985874,0.00027241,10]
[424884053,1781232644000,-3556.0,0.00027294,2]
[424884058,1781232644000,-420.462,0.00027294,2]
[424884057,1781232644000,-1229.417,0.00027294,2]
[424884056,1781232644000,-1275.0,0.00027294,2]
[424884061,1781232644000,-176.08898989,0.00027373,7]
[424884060,1781232644000,-3027.90867326,0.00027303,2]
[424884071,1781232644000,-765.29,0.00027397,20]
[424884066,1781232644000,-208.78265637,0.00027375,7]
[424884070,1781232644000,-1500.0,0.00027397,2]
[424884063,1781232644000,-199.13807714,0.00027375,7]
[424884062,1781232644000,-181.79817507,0.00027373,7]
[424884068,1781232644000,-500.0,0.00027397,20]
[424884076,1781232644000,-4517.53,0.00027397,10]
[424884069,1781232644000,-539.99141558,0.00027397,20]
[424884064,1781232644000,-168.6239991,0.00027375,7]
[424884067,1781232644000,-500.0,0.00027397,20]
[424884073,1781232644000,-338.209091,0.00027397,2]
[424884072,1781232644000,-338.209091,0.00027397,2]
[424884065,1781232644000,-173.12426253,0.00027375,7]
[424884126,1781232645000,-254.437045,0.00028245,14]
[424884131,1781232645000,-155.01,0.00028378,7]
[424884135,1781232645000,-352.17797977,0.00028666,7]
[424884133,1781232645000,-404.36,0.000284,7]
[424884132,1781232645000,-155.09,0.00028378,7]
[424884139,1781232645000,-154.14447915,0.00028666,7]
[424884136,1781232645000,-225.25240444,0.00028666,7]
[424884137,1781232645000,-363.59635013,0.00028666,7]
[424884127,1781232645000,-666.4,0.00028267,2]
[424884154,1781232645000,-216.27,0.00029,2]
[424884140,1781232645000,-398.27615427,0.00028668,7]
[424884134,1781232645000,-165.82,0.00028516,2]
[424884141,1781232645000,-218.72095081,0.00028668,7]
[424884138,1781232645000,-210.32132834,0.00028666,7]
[424884152,1781232645000,-228.41,0.00029,2]
[424884146,1781232645000,-1339.63,0.00028826,2]
[424884144,1781232645000,-150.0,0.00028767,2]
[424884145,1781232645000,-500.0,0.00028797,2]
[424884153,1781232645000,-158.32,0.00029,2]
[424884125,1781232645000,-220.325722,0.00028224,14]
[424884142,1781232645000,-346.24852506,0.00028668,7]
[424884130,1781232645000,-1883.8144244,0.00028371,2]
[424884108,1781232645000,-155.01,0.00027964,2]
[424884123,1781232645000,-199.1,0.00028194,7]
[424884143,1781232645000,-417.56531274,0.00028668,7]
[424884103,1781232645000,-151.0,0.00027872,2]
[424884102,1781232645000,-151.0,0.00027872,2]
[424884105,1781232645000,-157.54,0.00027881,7]
[424884116,1781232645000,-157.61,0.0002813,7]
[424884107,1781232645000,-157.54,0.00027964,30]
[424884104,1781232645000,-199.1,0.00027872,2]
[424884114,1781232645000,-157.54,0.00028047,2]
[424884106,1781232645000,-158.18,0.00027881,7]
[424884109,1781232645000,-155.09,0.00027964,2]
[424884113,1781232645000,-199.1,0.00028033,30]
[424884111,1781232645000,-158.18,0.00027964,30]
[424884112,1781232645000,-199.02,0.00028033,30]
[424884115,1781232645000,-158.18,0.00028047,2]
[424884117,1781232645000,-158.23,0.0002813,7]
[424884128,1781232645000,-165.82,0.00028275,7]
[424884122,1781232645000,-199.02,0.00028194,7]
[424884129,1781232645000,-505.0,0.00028333,10]
[424884121,1781232645000,-155.09,0.00028171,30]
[424884124,1781232645000,-153.72,0.000282,7]
[424884119,1781232645000,-734.17842592,0.00028156,2]
[424884120,1781232645000,-155.01,0.00028171,30]
[424884147,1781232645000,-304.0,0.000289,2]
[424884187,1781232645000,-519.37278759,0.00029531,7]
[424884149,1781232645000,-558.17,0.00029,2]
[424884170,1781232645000,-505.0,0.00029167,10]
[424884171,1781232645000,-618.0,0.000292,2]
[424884185,1781232645000,-220.65867989,0.00029531,2]
[424884188,1781232645000,-626.34796911,0.00029531,7]
[424884193,1781232645000,-209.66,0.0003,2]
[424884186,1781232645000,-437.44190162,0.00029531,7]
[424884190,1781232645000,-211.59466967,0.00029531,7]
[424884191,1781232645000,-200.0,0.00029852,2]
[424884194,1781232645000,-398.16,0.0003,2]
[424884189,1781232645000,-209.02242882,0.00029531,7]
[424884184,1781232645000,-224.69519319,0.00029531,7]
[424884183,1781232645000,-597.41423141,0.00029531,7]
[424884196,1781232645000,-301.72,0.0003,2]
[424884197,1781232645000,-699.58,0.0003,2]
[424884199,1781232645000,-1014.57096206,0.0003,2]
[424884198,1781232645000,-342.66,0.0003,2]
[424884202,1781232645000,-162.50820329,0.00030104,7]
[424884195,1781232645000,-286.57,0.0003,2]
[424884200,1781232645000,-1000.0,0.0003,120]
[424884201,1781232645000,-505.0,0.0003,11]
[424884148,1781232645000,-168.76003865,0.00028971,2]
[424884172,1781232645000,-262.0,0.00029319,2]
[424884181,1781232645000,-364.82404747,0.00029529,7]
[424884192,1781232645000,-180.5665502,0.000299,2]
[424884179,1781232645000,-308.28895831,0.00029529,7]
[424884182,1781232645000,-161.05093443,0.0002953,7]
[424884150,1781232645000,-10000.0,0.00029,2]
[424884151,1781232645000,-163.81,0.00029,2]
[424884155,1781232645000,-158.31,0.00029,2]
[424884157,1781232645000,-165.83,0.00029,2]
[424884158,1781232645000,-157.0,0.00029162,30]
[424884159,1781232645000,-206.0,0.00029162,30]
[424884166,1781232645000,-174.0,0.00029162,30]
[424884167,1781232645000,-173.0,0.00029162,30]
[424884160,1781232645000,-167.0,0.00029162,30]
[424884156,1781232645000,-9709.5709655,0.00029,2]
[424884161,1781232645000,-225.0,0.00029162,30]
[424884165,1781232645000,-200.0,0.00029162,30]
[424884163,1781232645000,-244.0,0.00029162,30]
[424884164,1781232645000,-589.0,0.00029162,30]
[424884169,1781232645000,-227.0,0.00029163,30]
[424884168,1781232645000,-189.0,0.00029163,30]
[424884176,1781232645000,-545.3945252,0.00029529,7]
[424884174,1781232645000,-450.50480887,0.00029529,7]
[424884173,1781232645000,-528.26696966,0.00029529,7]
[424884162,1781232645000,-158.0,0.00029162,30]
[424884178,1781232645000,-420.64265668,0.00029529,7]
[424884245,1781232646000,-227.0,0.00030163,30]
[424884241,1781232646000,-200.0,0.00030162,30]
[424884243,1781232646000,-173.0,0.00030162,30]
[424884244,1781232646000,-189.0,0.00030163,30]
[424884242,1781232646000,-174.0,0.00030162,30]
[424884236,1781232646000,-206.0,0.00030162,30]
[424884240,1781232646000,-589.0,0.00030162,30]
[424884237,1781232646000,-167.0,0.00030162,30]
[424884238,1781232646000,-225.0,0.00030162,30]
[424884257,1781232646000,-26911.10708108,0.00030571,7]
[424884234,1781232646000,-261.69990546,0.00030137,30]
[424884239,1781232646000,-244.0,0.00030162,30]
[424884256,1781232646000,-320.0,0.00030562,16]
[424884260,1781232646000,-843.11999548,0.0003068,7]
[424884247,1781232646000,-150.0,0.00030206,2]
[424884248,1781232646000,-666.4,0.00030239,2]
[424884250,1781232646000,-1358.0,0.00030294,2]
[424884249,1781232646000,-3556.0,0.00030294,2]
[424884253,1781232646000,-1227.0,0.00030294,2]
[424884252,1781232646000,-1275.0,0.00030294,2]
[424884254,1781232646000,-419.0,0.00030294,2]
[424884251,1781232646000,-382.0,0.00030294,2]
[424884255,1781232646000,-6076.0,0.00030294,2]
[424884258,1781232646000,-4909.54307396,0.00030571,7]
[424884261,1781232646000,-865.62131265,0.0003068,7]
[424884262,1781232646000,-870.0,0.0003083,30]
[424884235,1781232646000,-157.0,0.00030162,30]
[424884246,1781232646000,-153.72,0.000302,7]
[424884233,1781232646000,-261.7,0.00030137,30]
[424884211,1781232646000,-322.10186885,0.00030104,7]
[424884228,1781232646000,-210.65,0.00030137,5]
[424884206,1781232646000,-727.19270027,0.00030104,7]
[424884207,1781232646000,-630.96398502,0.00030104,7]
[424884204,1781232646000,-704.35595955,0.00030104,7]
[424884205,1781232646000,-675.75721331,0.00030104,7]
[424884203,1781232646000,-156.44694698,0.00030104,7]
[424884208,1781232646000,-399.56151551,0.00030104,7]
[424884210,1781232646000,-547.23607121,0.00030104,7]
[424884270,1781232646000,-262.0,0.00031044,2]
[424884209,1781232646000,-462.43343746,0.00030104,7]
[424884212,1781232646000,-188.12700812,0.00030105,7]
[424884214,1781232646000,-247.84348516,0.00030105,7]
[424884219,1781232646000,-835.13062548,0.00030105,7]
[424884218,1781232646000,-692.49705012,0.00030105,7]
[424884229,1781232646000,-213.64818573,0.00030137,40]
[424884213,1781232646000,-796.55230854,0.00030105,7]
[424884216,1781232646000,-674.49599639,0.00030105,7]
[424884215,1781232646000,-441.31735979,0.00030105,2]
[424884221,1781232646000,-219.03978163,0.00030105,7]
[424884220,1781232646000,-195.44767612,0.00030105,7]
[424884226,1781232646000,-449.39038639,0.00030105,7]
[424884224,1781232646000,-183.24758048,0.00030105,7]
[424884230,1781232646000,-320.0,0.00030137,15]
[424884222,1781232646000,-418.04485764,0.00030105,7]
[424884231,1781232646000,-3137.0,0.00030137,120]
[424884232,1781232646000,-152.0,0.00030137,120]
[424884223,1781232646000,-423.18933933,0.00030105,7]
[424884225,1781232646000,-444.09682652,0.00030105,7]
[424884227,1781232646000,-656.16285244,0.00030105,7]
[424884217,1781232646000,-287.87574342,0.00030105,7]
[424884264,1781232646000,-1400.0,0.000309,11]
[424884269,1781232646000,-404.36,0.00031,7]
[424884268,1781232646000,-2000.3569871,0.00031,120]
[424884307,1781232646000,-150.0,0.00031932,30]
[424884304,1781232646000,-150.0,0.00031932,30]
[424884298,1781232646000,-225.55820032,0.00031932,30]
[424884299,1781232646000,-257.55563188,0.00031932,30]
[424884308,1781232646000,-152.0,0.00031957,3]
[424884303,1781232646000,-150.0,0.00031932,30]
[424884301,1781232646000,-150.0,0.00031932,30]
[424884302,1781232646000,-150.0,0.00031932,30]
[424884300,1781232646000,-150.0,0.00031932,30]
[424884316,1781232646000,-192.57928027,0.00032,120]
[424884310,1781232646000,-164.58473458,0.00032,120]
[424884313,1781232646000,-168.91346881,0.00032,120]
[424884309,1781232646000,-174.14953345,0.00032,120]
[424884296,1781232646000,-734.17842592,0.0003177,2]
[424884320,1781232646000,-161.2155328,0.00032,120]
[424884319,1781232646000,-188.6840366,0.00032,120]
[424884317,1781232646000,-188.398215,0.00032,120]
[424884315,1781232646000,-813.84590609,0.00032,120]
[424884312,1781232646000,-210.54966235,0.00032,120]
[424884311,1781232646000,-208.76406884,0.00032,120]
[424884314,1781232646000,-189.39016739,0.00032,120]
[424884321,1781232646000,-162.88044551,0.00032,120]
[424884323,1781232646000,-177.39768194,0.00032,120]
[424884267,1781232646000,-160.0,0.00031,10]
[424884327,1781232646000,-172.5727479,0.00032,120]
[424884322,1781232646000,-185.65194979,0.00032,120]
[424884325,1781232646000,-181.3074543,0.00032,120]
[424884324,1781232646000,-192.78067843,0.00032,120]
[424884318,1781232646000,-189.9214738,0.00032,120]
[424884306,1781232646000,-150.0,0.00031932,30]
[424884326,1781232646000,-174.6254819,0.00032,120]
[424884297,1781232646000,-1000.0,0.00031886,7]
[424884305,1781232646000,-150.0,0.00031932,30]
[424884263,1781232646000,-505.0,0.00030833,12]
[424884266,1781232646000,-320.0,0.00030975,18]
[424884265,1781232646000,-10171.48163874,0.00030954,2]
[424884272,1781232646000,-9341.2852664,0.00031114,2]
[424884283,1781232646000,-227.0,0.00031163,30]
[424884281,1781232646000,-173.0,0.00031162,30]
[424884275,1781232646000,-167.0,0.00031162,30]
[424884282,1781232646000,-189.0,0.00031163,30]
[424884280,1781232646000,-174.0,0.00031162,30]
[424884276,1781232646000,-225.0,0.00031162,30]
[424884271,1781232646000,-286.52,0.00031096,5]
[424884279,1781232646000,-200.0,0.00031162,30]
[424884274,1781232646000,-206.0,0.00031162,30]
[424884259,1781232646000,-995.69038568,0.0003068,7]
[424884278,1781232646000,-589.0,0.00031162,30]
[424884277,1781232646000,-244.0,0.00031162,30]
[424884290,1781232646000,-1011.74399458,0.00031543,7]
[424884295,1781232646000,-320.0,0.00031768,21]
[424884289,1781232646000,-261.7,0.00031507,30]
[424884291,1781232646000,-1038.74557517,0.00031543,7]
[424884292,1781232646000,-505.0,0.00031667,13]
[424884293,1781232646000,-150.0,0.00031716,2]
[424884286,1781232646000,-2442.73462334,0.00031342,7]
[424884273,1781232646000,-157.0,0.00031162,30]
[424884287,1781232646000,-320.0,0.00031377,19]
[424884284,1781232646000,-1000.0,0.000312,7]
[424884294,1781232646000,-1000.0,0.00031742,7]
[424884288,1781232646000,-515.0,0.000314,120]
[424884285,1781232646000,-334.91,0.0003132,2]
[424884399,1781232647000,-153.856381,0.00032877,7]
[424884393,1781232647000,-26911.10708108,0.00032819,7]
[424884394,1781232647000,-4909.54307396,0.00032819,7]
[424884395,1781232647000,-1180.36799368,0.00032836,7]
[424884392,1781232647000,-209.0,0.00032768,3]
[424884386,1781232647000,-211.85,0.00032574,2]